[Event "22nd ETCC Women 2019"]
[Site "Batumi"]
[Date "2019.10.25"]
[Round "2.19"]
[White "Cramling Bellon, Anna"]
[Black "Dannenberg, Alia"]
[Result "0-1"]
[ECO "E71"]
[WhiteElo "2164"]
[BlackElo "1902"]
[Annotator "NA"]
[PlyCount "98"]
[EventDate "2019.10.24"]
[EventType "team-tourn"]
[EventCountry "GEO"]
[SourceTitle "playchess.com"]
[Source "ChessBase"]
[SourceQuality "1"]
[WhiteTeam "Sweden"]
[BlackTeam "Finland"]
[WhiteTeamCountry "SWE"]
[BlackTeamCountry "FIN"]
[TimeControl "40/5400+30:1800+30"]

1. d4 {[%emt 0:00:00]} Nf6 {[%emt 0:00:00]} 2. c4 {[%emt 0:00:00]} g6 {[%emt 0:00:00]} 3. Nc3 {[%emt 0:00:00]} Bg7 {[%emt 0:00:00]} 4. e4 {[%emt 0:00:00]} d6 {[%emt 0:00:00]} 5. h3 {[%emt 0:01:37]} O-O {[%emt 0:00:38]} 6. Nf3 {[%emt 0:00:11]} e5 {[%emt 0:02:21]} 7. d5 {[%emt 0:00:07]} a5 {[%emt 0:00:12]} 8. Bg5 {[%emt 0:09:27]} Na6 {[%emt 0:02:10]} 9. Be2 {[%emt 0:00:11]} Qe8 {[%emt 0:01:31]} 10. Nd2 {[%emt 0:07:23]} Nd7 {[%emt 0:10:16]} 11. g4 {[%emt 0:00:50]} Ndc5 {[%emt 0:00:56]} 12. Nb3 {[%emt 0:24:15]} Nxb3 {[%emt 0:03:18]} 13. Qxb3 {[%emt 0:00:08]} Nc5 {[%emt 0:00:47]} 14. Qc2 {[%emt 0:00:05]} Bd7 {[%emt 0:00:58]} 15. h4 {[%emt 0:03:16]} f5 {[%emt 0:05:44]} 16. gxf5 {[%emt 0:16:10]} gxf5 {[%emt 0:00:11]} 17. Rg1 {[%emt 0:06:53]} Kh8 {[%emt 0:04:37]} 18. h5 {[%emt 0:05:36]} f4 {[%emt 0:14:42]} 19. Bf3 {[%emt 0:03:08]} Bf6 {[%emt 0:07:22]} 20. Bxf6+ {[%emt 0:01:30]} Rxf6 {[%emt 0:00:02]} 21. O-O-O {[%emt 0:00:08]} Qe7 {[%emt 0:04:18]} 22. Qe2 {[%emt 0:01:57]} Rff8 {[%emt 0:09:05]} 23. Nb5 {[%emt 0:11:29]} Bxb5 {[%emt 0:01:32]} 24. cxb5 {[%emt 0:00:01]} Rg8 {[%emt 0:00:32]} 25. Bg4 {[%emt 0:00:13]} Rg5 {[%emt 0:03:02]} 26. f3 {[%emt 0:00:57]} h6 {[%emt 0:02:02]} 27. Rg2 {[%emt 0:02:04]} Rag8 {[%emt 0:02:35]} 28. Rdg1 {[%emt 0:00:04]} Qe8 {[%emt 0:03:52]} 29. Kb1 {[%emt 0:00:50]} R8g7 {[%emt 0:02:39]} 30. Qf1 {[%emt 0:02:16]} Qe7 {[%emt 0:06:13]} 31. Qe1 {[%emt 0:03:03]} b6 {[%emt 0:00:53]} 32. Qe2 {[%emt 0:00:07]} Nd7 {[%emt 0:02:49]} 33. Bxd7 {[%emt 0:01:31]} Rxg2 {[%emt 0:00:32]} 34. Rxg2 {[%emt 0:00:05]} Qxd7 {[%emt 0:00:30]} 35. Rg4 {[%emt 0:01:22]} Rxg4 {[%emt 0:02:32]} 36. fxg4 {[%emt 0:00:00]} Kg7 {[%emt 0:00:35]} 37. a4 {[%emt 0:01:01]} Kf6 {[%emt 0:00:27]} 38. Kc2 {[%emt 0:00:31]} Kg5 {[%emt 0:00:30]} 39. Qc4 {[%emt 0:00:28]} Kxg4 {[%emt 0:01:05]} 40. Qe2+ {[%emt 0:00:00]} f3 {[%emt 0:00:00]} 41. Qe3 {[%emt 0:15:44]} Qf7 {[%emt 0:05:07]} 42. Qg1+ {[%emt 0:03:51]} Kxh5 {[%emt 0:01:24]} 43. Qf2 {[%emt 0:05:43]} Qf4 {[%emt 0:01:03]} 44. Kd3 {[%emt 0:00:02]} Kg4 {[%emt 0:01:20]} 45. Qg1+ {[%emt 0:03:24]} Qg3 {[%emt 0:01:45]} 46. Qh1 {[%emt 0:02:02]} h5 {[%emt 0:02:52]} 47. Qd1 {[%emt 0:01:33]} h4 {[%emt 0:01:11]} 48. Qc1 {[%emt 0:01:03]} f2+ {[%emt 0:00:34]} 49. Kc2 {[%emt 0:00:58]} Qg1 {[%emt 0:03:16]} 0-1

[Event "22nd ETCC Women 2019"]
[Site "Batumi"]
[Date "2019.10.25"]
[Round "2.20"]
[White "Benmesbah, Natacha"]
[Black "Sargsyan, Anna M."]
[Result "0-1"]
[ECO "B11"]
[WhiteElo "2265"]
[BlackElo "2242"]
[Annotator "NA"]
[PlyCount "128"]
[EventDate "2019.10.24"]
[EventType "team-tourn"]
[EventCountry "GEO"]
[SourceTitle "playchess.com"]
[Source "ChessBase"]
[SourceQuality "1"]
[WhiteTeam "France"]
[BlackTeam "Armenia"]
[WhiteTeamCountry "FRA"]
[BlackTeamCountry "ARM"]
[TimeControl "40/5400+30:1800+30"]

1. e4 {[%emt 0:00:00]} c6 {[%emt 0:00:00]} 2. Nc3 {[%emt 0:00:00]} d5 {[%emt 0:00:00]} 3. Nf3 {[%emt 0:00:00]} Bg4 {[%emt 0:00:00]} 4. h3 {[%emt 0:00:00]} Bxf3 {[%emt 0:00:25]} 5. Qxf3 {[%emt 0:00:00]} Nf6 {[%emt 0:00:14]} 6. Be2 {[%emt 0:00:29]} e6 {[%emt 0:00:33]} 7. O-O {[%emt 0:01:16]} Nbd7 {[%emt 0:00:07]} 8. d4 {[%emt 0:00:51]} dxe4 {[%emt 0:00:13]} 9. Nxe4 {[%emt 0:00:05]} Nxe4 {[%emt 0:00:11]} 10. Qxe4 {[%emt 0:00:04]} Nf6 {[%emt 0:02:39]} 11. Qd3 {[%emt 0:00:05]} Bd6 {[%emt 0:03:03]} 12. a4 {[%emt 0:04:40]} O-O {[%emt 0:01:48]} 13. a5 {[%emt 0:01:21]} h6 {[%emt 0:04:37]} 14. a6 {[%emt 0:01:23]} b6 {[%emt 0:01:31]} 15. Rd1 {[%emt 0:06:07]} Rc8 {[%emt 0:02:14]} 16. Qf3 {[%emt 0:09:55]} Qe7 {[%emt 0:09:13]} 17. Bd3 {[%emt 0:06:01]} Rfd8 {[%emt 0:02:52]} 18. g3 {[%emt 0:29:24]} Nd7 {[%emt 0:09:55]} 19. Re1 {[%emt 0:07:40]} c5 {[%emt 0:11:00]} 20. Be3 {[%emt 0:04:47]} c4 {[%emt 0:01:46]} 21. Bf1 {[%emt 0:01:00]} Nf6 {[%emt 0:01:43]} 22. Bg2 {[%emt 0:07:58]} Bb8 {[%emt 0:07:56]} 23. c3 {[%emt 0:04:14]} Nd5 {[%emt 0:02:40]} 24. Bd2 {[%emt 0:04:53]} Bc7 {[%emt 0:14:21]} 25. Qh5 {[%emt 0:04:59]} Qf8 {[%emt 0:07:29]} 26. Qh4 {[%emt 0:02:03]} b5 {[%emt 0:02:21]} 27. Re2 {[%emt 0:02:50]} Rb8 {[%emt 0:03:30]} 28. Rae1 {[%emt 0:00:29]} Rb6 {[%emt 0:01:22]} 29. Be4 {[%emt 0:00:38]} Rxa6 {[%emt 0:04:07]} 30. Bc2 {[%emt 0:00:38]} Rb6 {[%emt 0:02:36]} 31. Ra1 {[%emt 0:01:01]} a6 {[%emt 0:00:40]} 32. Qe4 {[%emt 0:00:32]} Nf6 {[%emt 0:01:30]} 33. Qf3 {[%emt 0:00:17]} Qe7 {[%emt 0:00:49]} 34. Rae1 {[%emt 0:00:04]} Bd6 {[%emt 0:01:05]} 35. Bc1 {[%emt 0:01:05]} Qb7 {[%emt 0:00:37]} 36. Qe3 {[%emt 0:00:33]} b4 {[%emt 0:00:15]} 37. h4 {[%emt 0:00:31]} a5 {[%emt 0:00:42]} 38. Qd2 {[%emt 0:00:34]} b3 {[%emt 0:00:29]} 39. Bb1 {[%emt 0:00:06]} a4 {[%emt 0:00:12]} 40. Qe3 {[%emt 0:00:00]} a3 {[%emt 0:00:00]} 41. bxa3 {[%emt 0:00:39]} b2 {[%emt 0:03:17]} 42. Bd2 {[%emt 0:00:07]} Ng4 {[%emt 0:02:32]} 43. Qe4 {[%emt 0:05:05]} Qxe4 {[%emt 0:01:14]} 44. Bxe4 {[%emt 0:03:23]} Nf6 {[%emt 0:01:18]} 45. Rb1 {[%emt 0:00:42]} Nxe4 {[%emt 0:03:11]} 46. Rxe4 {[%emt 0:00:03]} Ra8 {[%emt 0:00:33]} 47. Kg2 {[%emt 0:00:44]} Rxa3 {[%emt 0:00:19]} 48. Re2 {[%emt 0:03:34]} Rbb3 {[%emt 0:04:53]} 49. Kh3 {[%emt 0:06:06]} Bc7 {[%emt 0:02:13]} 50. Be3 {[%emt 0:01:24]} Ra2 {[%emt 0:00:30]} 51. Rc2 {[%emt 0:00:08]} Bd6 {[%emt 0:01:16]} 52. Re2 {[%emt 0:01:11]} Kf8 {[%emt 0:03:39]} 53. Bd2 {[%emt 0:06:16]} Ra1 {[%emt 0:01:40]} 54. Ree1 {[%emt 0:00:04]} Rxb1 {[%emt 0:00:07]} 55. Rxb1 {[%emt 0:00:02]} Ke7 {[%emt 0:00:10]} 56. Kg4 {[%emt 0:01:00]} Kd7 {[%emt 0:00:05]} 57. Kf3 {[%emt 0:01:02]} Kc6 {[%emt 0:00:06]} 58. Ke2 {[%emt 0:00:35]} Kb5 {[%emt 0:00:04]} 59. Kd1 {[%emt 0:01:50]} Ka4 {[%emt 0:00:09]} 60. Kc2 {[%emt 0:00:05]} Ka3 {[%emt 0:00:05]} 61. Be1 {[%emt 0:00:47]} Ka2 {[%emt 0:00:06]} 62. Bd2 {[%emt 0:00:06]} Bc7 {[%emt 0:00:28]} 63. Be1 {[%emt 0:00:26]} Ba5 {[%emt 0:00:07]} 64. Bd2 {[%emt 0:00:38]} Bxc3 {[%emt 0:00:13]} 0-1

[Event "22nd ETCC Women 2019"]
[Site "Batumi"]
[Date "2019.10.25"]
[Round "2.20"]
[White "Norlamo, Sarabella"]
[Black "Borisova, Borislava"]
[Result "1-0"]
[ECO "D10"]
[WhiteElo "2020"]
[BlackElo "1919"]
[Annotator "NA"]
[PlyCount "107"]
[EventDate "2019.10.24"]
[EventType "team-tourn"]
[EventCountry "GEO"]
[SourceTitle "playchess.com"]
[Source "ChessBase"]
[SourceQuality "1"]
[WhiteTeam "Finland"]
[BlackTeam "Sweden"]
[WhiteTeamCountry "FIN"]
[BlackTeamCountry "SWE"]
[TimeControl "40/5400+30:1800+30"]

1. d4 {[%emt 0:00:00]} d5 {[%emt 0:00:00]} 2. c4 {[%emt 0:00:00]} c6 {[%emt 0:00:17]} 3. cxd5 {[%emt 0:00:00]} cxd5 {[%emt 0:00:24]} 4. Nc3 {[%emt 0:00:00]} Nf6 {[%emt 0:01:32]} 5. Nf3 {[%emt 0:00:05]} Bf5 {[%emt 0:03:26]} 6. Qb3 {[%emt 0:05:53]} Bc8 {[%emt 0:07:08]} 7. Bf4 {[%emt 0:02:53]} g6 {[%emt 0:10:37]} 8. e3 {[%emt 0:06:54]} Bg7 {[%emt 0:03:44]} 9. Bb5+ {[%emt 0:08:04]} Bd7 {[%emt 0:02:03]} 10. Bxd7+ {[%emt 0:06:10]} Nbxd7 {[%emt 0:07:38]} 11. Nxd5 {[%emt 0:01:36]} Qa5+ {[%emt 0:05:18]} 12. Nc3 {[%emt 0:00:30]} O-O {[%emt 0:06:44]} 13. O-O {[%emt 0:03:55]} b6 {[%emt 0:10:36]} 14. Rac1 {[%emt 0:07:45]} a6 {[%emt 0:09:35]} 15. Ne5 {[%emt 0:08:48]} Nxe5 {[%emt 0:04:30]} 16. Bxe5 {[%emt 0:00:21]} b5 {[%emt 0:02:29]} 17. Rc2 {[%emt 0:08:54]} Qd8 {[%emt 0:04:11]} 18. Rfc1 {[%emt 0:01:01]} e6 {[%emt 0:01:36]} 19. Ne2 {[%emt 0:03:50]} Qd5 {[%emt 0:01:25]} 20. Qa3 {[%emt 0:06:06]} Ng4 {[%emt 0:07:32]} 21. Rc5 {[%emt 0:02:12]} Qd8 {[%emt 0:00:49]} 22. Bxg7 {[%emt 0:02:44]} Kxg7 {[%emt 0:00:06]} 23. h3 {[%emt 0:01:33]} Nf6 {[%emt 0:00:20]} 24. Rc6 {[%emt 0:02:24]} a5 {[%emt 0:00:23]} 25. Nf4 {[%emt 0:00:20]} b4 {[%emt 0:00:55]} 26. Qb3 {[%emt 0:01:04]} Re8 {[%emt 0:01:14]} 27. Nd3 {[%emt 0:03:48]} Qd5 {[%emt 0:02:00]} 28. Qa4 {[%emt 0:02:12]} Qf5 {[%emt 0:01:01]} 29. Ne5 {[%emt 0:02:47]} Ne4 {[%emt 0:00:14]} 30. Qc2 {[%emt 0:00:44]} Nf6 {[%emt 0:03:54]} 31. Rc7 {[%emt 0:01:45]} Rf8 {[%emt 0:00:16]} 32. Qa4 {[%emt 0:02:55]} Nd5 {[%emt 0:01:37]} 33. R7c5 {[%emt 0:00:52]} Qg5 {[%emt 0:00:40]} 34. Nf3 {[%emt 0:03:23]} Qd8 {[%emt 0:00:22]} 35. Nd2 {[%emt 0:00:21]} Qg5 {[%emt 0:00:49]} 36. Nb3 {[%emt 0:01:55]} Qh4 {[%emt 0:00:39]} 37. Rxa5 {[%emt 0:01:04]} Rxa5 {[%emt 0:00:37]} 38. Qxa5 {[%emt 0:00:14]} Qe4 {[%emt 0:00:29]} 39. Nc5 {[%emt 0:00:53]} Qf5 {[%emt 0:00:56]} 40. Qa7 {[%emt 0:00:00]} Qf6 {[%emt 0:00:00]} 41. Nd7 {[%emt 0:03:48]} Qe7 {[%emt 0:01:16]} 42. Qa4 {[%emt 0:01:53]} Rd8 {[%emt 0:04:51]} 43. Ne5 {[%emt 0:01:08]} Qb7 {[%emt 0:04:54]} 44. Qb3 {[%emt 0:01:57]} Ra8 {[%emt 0:05:46]} 45. Nd3 {[%emt 0:05:09]} Rb8 {[%emt 0:06:37]} 46. Rc4 {[%emt 0:01:57]} h6 {[%emt 0:03:26]} 47. e4 {[%emt 0:02:50]} Nb6 {[%emt 0:03:13]} 48. Nc5 {[%emt 0:01:31]} Qa7 {[%emt 0:02:59]} 49. Rxb4 {[%emt 0:00:38]} Nd7 {[%emt 0:01:14]} 50. Nxd7 {[%emt 0:03:13]} Rxb4 {[%emt 0:00:08]} 51. Qxb4 {[%emt 0:00:09]} Qxd7 {[%emt 0:00:03]} 52. Qc3 {[%emt 0:03:11]} f6 {[%emt 0:00:28]} 53. b3 {[%emt 0:00:57]} h5 {[%emt 0:02:08]} 54. a4 {[%emt 0:00:41]} 1-0

[Event "22nd ETCC Women 2019"]
[Site "Batumi"]
[Date "2019.10.25"]
[Round "2.21"]
[White "Haast, Anne"]
[Black "Bulmaga, Irina"]
[Result "0-1"]
[ECO "C45"]
[WhiteElo "2288"]
[BlackElo "2442"]
[Annotator "NA"]
[PlyCount "50"]
[EventDate "2019.10.24"]
[EventType "team-tourn"]
[EventCountry "GEO"]
[SourceTitle "playchess.com"]
[Source "ChessBase"]
[SourceQuality "1"]
[WhiteTeam "Netherlands"]
[BlackTeam "Romania"]
[WhiteTeamCountry "NED"]
[BlackTeamCountry "ROU"]
[TimeControl "40/5400+30:1800+30"]

1. e4 {[%emt 0:00:00]} e5 {[%emt 0:00:00]} 2. Nf3 {[%emt 0:00:14]} Nc6 {[%emt 0:00:00]} 3. d4 {[%emt 0:00:34]} exd4 {[%emt 0:00:00]} 4. Nxd4 {[%emt 0:00:31]} Bc5 {[%emt 0:00:47]} 5. Nb3 {[%emt 0:03:32]} Bb6 {[%emt 0:05:11]} 6. Nc3 {[%emt 0:01:29]} Nge7 {[%emt 0:09:42]} 7. Bg5 {[%emt 0:17:40]} O-O {[%emt 0:06:15]} 8. Qd2 {[%emt 0:05:54]} d6 {[%emt 0:00:46]} 9. O-O-O {[%emt 0:01:47]} a5 {[%emt 0:14:33]} 10. a4 {[%emt 0:04:13]} Bg4 {[%emt 0:11:22]} 11. f3 {[%emt 0:04:01]} Be6 {[%emt 0:00:13]} 12. f4 {[%emt 0:03:26]} f6 {[%emt 0:08:23]} 13. Bh4 {[%emt 0:01:24]} Kh8 {[%emt 0:02:09]} 14. Bf2 {[%emt 0:06:24]} Bxf2 {[%emt 0:05:16]} 15. Qxf2 {[%emt 0:00:07]} Nb4 {[%emt 0:01:26]} 16. Rg1 {[%emt 0:06:27]} Bxb3 {[%emt 0:04:31]} 17. cxb3 {[%emt 0:00:10]} d5 {[%emt 0:01:26]} 18. Bd3 {[%emt 0:07:46]} d4 {[%emt 0:03:46]} 19. Bc4 {[%emt 0:01:59]} c5 {[%emt 0:01:27]} 20. g4 {[%emt 0:01:09]} Nc8 {[%emt 0:05:50]} 21. Ne2 {[%emt 0:18:35]} Nd6 {[%emt 0:01:21]} 22. Qh4 {[%emt 0:10:24]} Nxc4 {[%emt 0:00:40]} 23. bxc4 {[%emt 0:00:10]} Qe8 {[%emt 0:00:25]} 24. b3 {[%emt 0:02:48]} Qxe4 {[%emt 0:00:27]} 25. Rd2 {[%emt 0:00:11]} d3 {[%emt 0:02:26]} 0-1

[Event "22nd ETCC Women 2019"]
[Site "Batumi"]
[Date "2019.10.25"]
[Round "2.22"]
[White "Peptan, Corina-Isabela"]
[Black "Paulet, Iozefina"]
[Result "1-0"]
[ECO "E16"]
[WhiteElo "2371"]
[BlackElo "2288"]
[Annotator "NA"]
[PlyCount "113"]
[EventDate "2019.10.24"]
[EventType "team-tourn"]
[EventCountry "GEO"]
[SourceTitle "playchess.com"]
[Source "ChessBase"]
[SourceQuality "1"]
[WhiteTeam "Romania"]
[BlackTeam "Netherlands"]
[WhiteTeamCountry "ROU"]
[BlackTeamCountry "NED"]
[TimeControl "40/5400+30:1800+30"]

1. Nf3 {[%emt 0:00:00]} Nf6 {[%emt 0:00:00]} 2. g3 {[%emt 0:00:00]} b6 {[%emt 0:02:00]} 3. Bg2 {[%emt 0:00:00]} Bb7 {[%emt 0:00:04]} 4. d4 {[%emt 0:00:59]} e6 {[%emt 0:00:04]} 5. c4 {[%emt 0:00:20]} Bb4+ {[%emt 0:03:39]} 6. Bd2 {[%emt 0:01:51]} a5 {[%emt 0:00:21]} 7. O-O {[%emt 0:02:08]} Bxd2 {[%emt 0:04:59]} 8. Qxd2 {[%emt 0:01:06]} d6 {[%emt 0:01:01]} 9. Nc3 {[%emt 0:07:25]} O-O {[%emt 0:19:33]} 10. Qc2 {[%emt 0:22:27]} Nbd7 {[%emt 0:12:48]} 11. Rfd1 {[%emt 0:02:33]} c6 {[%emt 0:04:21]} 12. Rac1 {[%emt 0:02:56]} Rc8 {[%emt 0:00:23]} 13. e4 {[%emt 0:01:09]} Qc7 {[%emt 0:01:04]} 14. Rd2 {[%emt 0:05:33]} Qb8 {[%emt 0:00:44]} 15. Qd1 {[%emt 0:02:16]} b5 {[%emt 0:06:25]} 16. e5 {[%emt 0:08:02]} dxe5 {[%emt 0:14:41]} 17. dxe5 {[%emt 0:00:10]} Nxe5 {[%emt 0:00:08]} 18. Nxe5 {[%emt 0:00:15]} Qxe5 {[%emt 0:00:04]} 19. cxb5 {[%emt 0:00:09]} Nd5 {[%emt 0:00:45]} 20. bxc6 {[%emt 0:01:22]} Rxc6 {[%emt 0:09:03]} 21. Nxd5 {[%emt 0:01:17]} exd5 {[%emt 0:00:24]} 22. Rxc6 {[%emt 0:00:08]} Bxc6 {[%emt 0:00:06]} 23. b3 {[%emt 0:07:17]} Rd8 {[%emt 0:01:18]} 24. h4 {[%emt 0:02:05]} g6 {[%emt 0:03:39]} 25. Kh2 {[%emt 0:00:12]} h5 {[%emt 0:00:41]} 26. Qc1 {[%emt 0:00:45]} Qf6 {[%emt 0:11:05]} 27. Qc5 {[%emt 0:00:57]} a4 {[%emt 0:00:01]} 28. bxa4 {[%emt 0:01:33]} Bxa4 {[%emt 0:01:23]} 29. Rxd5 {[%emt 0:00:51]} Rxd5 {[%emt 0:01:49]} 30. Bxd5 {[%emt 0:01:27]} Qf5 {[%emt 0:01:02]} 31. Qd4 {[%emt 0:00:45]} Qd7 {[%emt 0:00:52]} 32. Qe4 {[%emt 0:02:02]} Kg7 {[%emt 0:00:27]} 33. Qe5+ {[%emt 0:01:30]} Kg8 {[%emt 0:00:24]} 34. Qb8+ {[%emt 0:01:56]} Kg7 {[%emt 0:00:32]} 35. Qb2+ {[%emt 0:00:12]} Kg8 {[%emt 0:00:30]} 36. Qb7 {[%emt 0:00:12]} Qf5 {[%emt 0:00:57]} 37. Kg1 {[%emt 0:03:55]} Bd7 {[%emt 0:00:31]} 38. Qb3 {[%emt 0:04:14]} Kg7 {[%emt 0:00:09]} 39. Qc3+ {[%emt 0:00:42]} Kg8 {[%emt 0:00:36]} 40. Qf3 {[%emt 0:00:00]} Qb1+ {[%emt 0:00:00]} 41. Kh2 {[%emt 0:05:53]} Be8 {[%emt 0:01:58]} 42. Qe4 {[%emt 0:00:24]} Qxe4 {[%emt 0:03:28]} 43. Bxe4 {[%emt 0:00:58]} Kg7 {[%emt 0:03:21]} 44. Kg2 {[%emt 0:00:04]} Kf6 {[%emt 0:00:09]} 45. f4 {[%emt 0:00:46]} Ke6 {[%emt 0:00:25]} 46. Kf3 {[%emt 0:00:07]} Kd6 {[%emt 0:00:06]} 47. Ke3 {[%emt 0:00:31]} Kc5 {[%emt 0:00:06]} 48. f5 {[%emt 0:00:11]} gxf5 {[%emt 0:00:47]} 49. Bxf5 {[%emt 0:00:02]} Kd6 {[%emt 0:00:35]} 50. Kf4 {[%emt 0:00:05]} f6 {[%emt 0:00:09]} 51. Bc2 {[%emt 0:00:06]} Ke7 {[%emt 0:00:25]} 52. a4 {[%emt 0:00:22]} Kf7 {[%emt 0:00:34]} 53. a5 {[%emt 0:00:06]} Bb5 {[%emt 0:00:04]} 54. Ke3 {[%emt 0:00:05]} Ke6 {[%emt 0:01:09]} 55. Bd3 {[%emt 0:00:06]} Bc6 {[%emt 0:00:03]} 56. a6 {[%emt 0:00:08]} Ke5 {[%emt 0:00:13]} 57. a7 {[%emt 0:00:08]} 1-0

[Event "22nd ETCC Women 2019"]
[Site "Batumi"]
[Date "2019.10.25"]
[Round "2.22"]
[White "Vanduyfhuys, Daria"]
[Black "Toma, Katarzyna"]
[Result "0-1"]
[ECO "A57"]
[WhiteElo "1983"]
[BlackElo "2272"]
[Annotator "NA"]
[PlyCount "56"]
[EventDate "2019.10.24"]
[EventType "team-tourn"]
[EventCountry "GEO"]
[SourceTitle "playchess.com"]
[Source "ChessBase"]
[SourceQuality "1"]
[WhiteTeam "Belgium"]
[BlackTeam "England"]
[WhiteTeamCountry "BEL"]
[BlackTeamCountry "ENG"]
[TimeControl "40/5400+30:1800+30"]

1. d4 {[%emt 0:00:00]} Nf6 {[%emt 0:00:00]} 2. c4 {[%emt 0:00:00]} c5 {[%emt 0:00:00]} 3. d5 {[%emt 0:00:00]} b5 {[%emt 0:00:00]} 4. Qc2 {[%emt 0:00:00]} bxc4 {[%emt 0:00:07]} 5. e4 {[%emt 0:00:06]} d6 {[%emt 0:00:12]} 6. Bxc4 {[%emt 0:00:12]} g6 {[%emt 0:00:07]} 7. Nc3 {[%emt 0:01:36]} Bg7 {[%emt 0:00:08]} 8. Nf3 {[%emt 0:00:10]} O-O {[%emt 0:00:22]} 9. O-O {[%emt 0:00:11]} Ba6 {[%emt 0:00:46]} 10. Nd2 {[%emt 0:07:04]} Nfd7 {[%emt 0:01:42]} 11. Bxa6 {[%emt 0:01:54]} Nxa6 {[%emt 0:00:06]} 12. Nc4 {[%emt 0:00:20]} Nb6 {[%emt 0:06:58]} 13. Nxb6 {[%emt 0:10:00]} Qxb6 {[%emt 0:01:52]} 14. Bg5 {[%emt 0:03:25]} Rfe8 {[%emt 0:22:34]} 15. Rab1 {[%emt 0:03:48]} Rab8 {[%emt 0:00:22]} 16. h4 {[%emt 0:04:20]} Rb7 17. h5 {[%emt 0:08:12]} Rc8 {[%emt 0:17:29]} 18. g3 {[%emt 0:07:00]} c4 {[%emt 0:06:17]} 19. Qd2 {[%emt 0:01:38]} Qd4 {[%emt 0:03:16]} 20. Qf4 {[%emt 0:14:40]} Nb4 {[%emt 0:01:46]} 21. Qg4 {[%emt 0:02:44]} f5 {[%emt 0:13:00]} 22. Qh4 {[%emt 0:03:42]} Nd3 {[%emt 0:01:21]} 23. Kg2 {[%emt 0:12:46]} Nxb2 {[%emt 0:03:07]} 24. hxg6 {[%emt 0:00:57]} hxg6 {[%emt 0:00:29]} 25. Rh1 {[%emt 0:04:54]} Kf7 {[%emt 0:01:39]} 26. g4 {[%emt 0:07:25]} Rh8 {[%emt 0:02:32]} 27. Qg3 {[%emt 0:01:05]} Qxc3 {[%emt 0:00:10]} 28. Be3 {[%emt 0:00:39]} Qe5 {[%emt 0:00:52]} 0-1

[Event "22nd ETCC Women 2019"]
[Site "Batumi"]
[Date "2019.10.25"]
[Round "2.23"]
[White "Lanchava, Tea"]
[Black "Sandu, Mihaela"]
[Result "1/2-1/2"]
[ECO "A36"]
[WhiteElo "2236"]
[BlackElo "2260"]
[Annotator "NA"]
[PlyCount "61"]
[EventDate "2019.10.24"]
[EventType "team-tourn"]
[EventCountry "GEO"]
[SourceTitle "playchess.com"]
[Source "ChessBase"]
[SourceQuality "1"]
[WhiteTeam "Netherlands"]
[BlackTeam "Romania"]
[WhiteTeamCountry "NED"]
[BlackTeamCountry "ROU"]
[TimeControl "40/5400+30:1800+30"]

1. c4 {[%emt 0:00:00]} c5 {[%emt 0:00:00]} 2. Nc3 {[%emt 0:02:17]} Nc6 {[%emt 0:00:03]} 3. g3 {[%emt 0:00:23]} g6 {[%emt 0:00:09]} 4. Bg2 {[%emt 0:00:52]} Bg7 {[%emt 0:00:06]} 5. d3 {[%emt 0:01:50]} d6 {[%emt 0:00:32]} 6. e4 {[%emt 0:05:44]} e6 {[%emt 0:00:25]} 7. Nge2 {[%emt 0:00:27]} Nge7 {[%emt 0:00:09]} 8. O-O {[%emt 0:00:21]} O-O {[%emt 0:00:22]} 9. Be3 {[%emt 0:00:45]} Nd4 {[%emt 0:00:11]} 10. Qd2 {[%emt 0:01:27]} Nec6 {[%emt 0:01:22]} 11. f4 {[%emt 0:14:20]} Rb8 {[%emt 0:17:55]} 12. Kh1 {[%emt 0:01:37]} f5 {[%emt 0:02:55]} 13. Rae1 {[%emt 0:16:34]} a6 {[%emt 0:05:18]} 14. Bg1 {[%emt 0:06:42]} Qa5 {[%emt 0:13:03]} 15. Qc1 {[%emt 0:07:59]} Bd7 {[%emt 0:00:43]} 16. a3 {[%emt 0:11:26]} b5 {[%emt 0:12:07]} 17. cxb5 {[%emt 0:00:07]} axb5 {[%emt 0:02:15]} 18. Nxd4 {[%emt 0:00:37]} Nxd4 {[%emt 0:00:41]} 19. Ne2 {[%emt 0:00:26]} Nb3 {[%emt 0:18:24]} 20. Qc2 {[%emt 0:00:29]} c4 {[%emt 0:00:36]} 21. Rd1 {[%emt 0:02:11]} Qc7 {[%emt 0:08:30]} 22. dxc4 {[%emt 0:04:33]} bxc4 {[%emt 0:01:01]} 23. Nc3 {[%emt 0:01:26]} fxe4 {[%emt 0:06:14]} 24. Nxe4 {[%emt 0:00:37]} d5 {[%emt 0:00:05]} 25. Ng5 {[%emt 0:01:10]} Nc5 {[%emt 0:01:40]} 26. Rb1 {[%emt 0:00:39]} Nb3 {[%emt 0:04:02]} 27. h4 {[%emt 0:02:46]} d4 {[%emt 0:00:32]} 28. Rbd1 {[%emt 0:03:49]} Qc8 {[%emt 0:00:56]} 29. Qe4 {[%emt 0:00:52]} Nc5 {[%emt 0:01:09]} 30. Qc2 {[%emt 0:00:07]} Nd3 {[%emt 0:02:33]} 31. b4 1/2-1/2